[Event "Early-Titled-Tuesday-Blitz-October-03-2023"]
[Site "Chess.com"]
[Date "2023.10.03"]
[Round "8"]
[White "Maxfan2008"]
[Black "crazy_m_attack"]
[Result "1-0"]
[WhiteElo "2567"]
[BlackElo "2402"]
[TimeControl "180+1"]
[EndTime "9:30:28 PDT"]
[Termination "Maxfan2008 won by checkmate"]

1. d4 {[%clk 0:03:00.9]} 1... Nf6 {[%clk 0:03:00]} 2. c4 {[%clk 0:02:59.7]} 2...
e6 {[%clk 0:03:00.2]} 3. Nc3 {[%clk 0:02:56.2]} 3... d5 {[%clk 0:02:59.3]} 4.
cxd5 {[%clk 0:02:55.1]} 4... exd5 {[%clk 0:02:59.5]} 5. Bg5 {[%clk 0:02:53.9]}
5... Be7 {[%clk 0:02:56.7]} 6. e3 {[%clk 0:02:54.3]} 6... c6 {[%clk 0:02:56.9]}
7. Bd3 {[%clk 0:02:53.7]} 7... O-O {[%clk 0:02:57.2]} 8. Qc2 {[%clk 0:02:52.3]}
8... Nbd7 {[%clk 0:02:57]} 9. h3 {[%clk 0:02:50.9]} 9... Re8 {[%clk 0:02:53.8]}
10. Nf3 {[%clk 0:02:50.2]} 10... Nf8 {[%clk 0:02:52.3]} 11. Bf4 {[%clk
0:02:48.7]} 11... Ng6 {[%clk 0:02:49.2]} 12. Bh2 {[%clk 0:02:48]} 12... Bd6
{[%clk 0:02:48.3]} 13. Bxd6 {[%clk 0:02:47.9]} 13... Qxd6 {[%clk 0:02:49.2]} 14.
O-O-O {[%clk 0:02:47.9]} 14... b5 {[%clk 0:02:47.3]} 15. Kb1 {[%clk 0:02:47.5]}
15... a5 {[%clk 0:02:46.9]} 16. Rc1 {[%clk 0:02:44.7]} 16... Bd7 {[%clk
0:02:44]} 17. g4 {[%clk 0:02:38.8]} 17... Rec8 {[%clk 0:02:40.5]} 18. g5 {[%clk
0:02:31.8]} 18... Nh5 {[%clk 0:02:38.2]} 19. Qe2 {[%clk 0:02:21.7]} 19... Qe7
{[%clk 0:01:54.8]} 20. Rhg1 {[%clk 0:02:11.2]} 20... Nf8 {[%clk 0:01:30.4]} 21.
Ne5 {[%clk 0:02:06.2]} 21... g6 {[%clk 0:01:30.4]} 22. f4 {[%clk 0:02:01.2]}
22... Ng7 {[%clk 0:01:24.3]} 23. h4 {[%clk 0:01:53.7]} 23... a4 {[%clk
0:00:53.5]} 24. Ka1 {[%clk 0:01:35.3]} 24... b4 {[%clk 0:00:52.8]} 25. Nd1
{[%clk 0:01:35.1]} 25... c5 {[%clk 0:00:46.6]} 26. dxc5 {[%clk 0:01:31.2]} 26...
Rxc5 {[%clk 0:00:47.5]} 27. Nf2 {[%clk 0:01:26.5]} 27... Rac8 {[%clk 0:00:40.4]}
28. Rxc5 {[%clk 0:01:24.4]} 28... Qxc5 {[%clk 0:00:41.3]} 29. Nfg4 {[%clk
0:01:16.7]} 29... Bxg4 {[%clk 0:00:23.6]} 30. Nxg4 {[%clk 0:01:17.6]} 30... Nfe6
{[%clk 0:00:17.7]} 31. Nf6+ {[%clk 0:01:16.5]} 31... Kh8 {[%clk 0:00:17.3]} 32.
Qd2 {[%clk 0:01:04.9]} 32... Nxf4 {[%clk 0:00:14.8]} 33. Ba6 {[%clk 0:00:48.1]}
33... Rc6 {[%clk 0:00:11.4]} 34. Bb7 {[%clk 0:00:36]} 34... Rb6 {[%clk
0:00:10.4]} 35. Rc1 {[%clk 0:00:27.8]} 35... Nfe6 {[%clk 0:00:03.4]} 36. Rxc5
{[%clk 0:00:25.9]} 36... Nxc5 {[%clk 0:00:04.3]} 37. Qxd5 {[%clk 0:00:21.8]}
37... Nge6 {[%clk 0:00:04.5]} 38. Bc8 {[%clk 0:00:18.1]} 38... Rb8 {[%clk
0:00:04.2]} 39. Bxe6 {[%clk 0:00:17.8]} 39... Nxe6 {[%clk 0:00:04.8]} 40. Qe5
{[%clk 0:00:18]} 40... Rd8 {[%clk 0:00:04.6]} 41. Kb1 {[%clk 0:00:13.3]} 41...
b3 {[%clk 0:00:03.8]} 42. axb3 {[%clk 0:00:12.7]} 42... axb3 {[%clk 0:00:03.8]}
43. Nd5+ {[%clk 0:00:12.3]} 43... Kg8 {[%clk 0:00:03.7]} 44. Nf6+ {[%clk
0:00:11.8]} 44... Kf8 {[%clk 0:00:03.5]} 45. Kc1 {[%clk 0:00:11.7]} 45... Rc8+
{[%clk 0:00:03.1]} 46. Kd1 {[%clk 0:00:10.9]} 46... Rd8+ {[%clk 0:00:03.1]} 47.
Ke1 {[%clk 0:00:10.8]} 47... Rc8 {[%clk 0:00:01.5]} 48. Nd5 {[%clk 0:00:10.4]}
48... Rc1+ {[%clk 0:00:01.3]} 49. Kd2 {[%clk 0:00:09.3]} 49... Rc2+ {[%clk
0:00:02.2]} 50. Kd1 {[%clk 0:00:09.7]} 50... Rg2 {[%clk 0:00:01.4]} 51. Qh8#
{[%clk 0:00:09.7]} 1-0

[Event "Early-Titled-Tuesday-Blitz-October-03-2023"]
[Site "Chess.com"]
[Date "2023.10.03"]
[Round "8"]
[White "igorkovalenko"]
[Black "Duhless"]
[Result "1-0"]
[WhiteElo "2890"]
[BlackElo "2967"]
[TimeControl "180+1"]
[EndTime "9:30:30 PDT"]
[Termination "igorkovalenko won on time"]

1. c4 {[%clk 0:02:59.9]} 1... Nf6 {[%clk 0:02:58.9]} 2. g3 {[%clk 0:02:59.8]}
2... e5 {[%clk 0:02:57]} 3. Bg2 {[%clk 0:02:59.1]} 3... Nc6 {[%clk 0:02:55.6]}
4. Nc3 {[%clk 0:02:58.8]} 4... Bb4 {[%clk 0:02:55.3]} 5. Nd5 {[%clk 0:02:59]}
5... O-O {[%clk 0:02:55]} 6. Nf3 {[%clk 0:02:58.6]} 6... Re8 {[%clk 0:02:53.6]}
7. O-O {[%clk 0:02:51.1]} 7... a5 {[%clk 0:02:46.2]} 8. d3 {[%clk 0:02:44.3]}
8... h6 {[%clk 0:02:44]} 9. a3 {[%clk 0:02:35.4]} 9... Bf8 {[%clk 0:02:41.2]}
10. Nc3 {[%clk 0:02:34.5]} 10... d5 {[%clk 0:02:35.6]} 11. cxd5 {[%clk
0:02:34.1]} 11... Nxd5 {[%clk 0:02:36.5]} 12. Bd2 {[%clk 0:02:32.9]} 12... Nxc3
{[%clk 0:02:28.5]} 13. Bxc3 {[%clk 0:02:31.6]} 13... a4 {[%clk 0:02:29.2]} 14.
Rc1 {[%clk 0:02:29.7]} 14... Be6 {[%clk 0:02:21.2]} 15. Qe1 {[%clk 0:02:21.8]}
15... Bd5 {[%clk 0:02:12.8]} 16. e4 {[%clk 0:02:18.5]} 16... Bb3 {[%clk
0:02:10.7]} 17. Qe3 {[%clk 0:02:18.5]} 17... Qd7 {[%clk 0:02:04.4]} 18. d4
{[%clk 0:01:19.9]} 18... exd4 {[%clk 0:02:03.4]} 19. Bxd4 {[%clk 0:01:20.8]}
19... Rad8 {[%clk 0:01:07.4]} 20. Bc3 {[%clk 0:01:17.2]} 20... Qd3 {[%clk
0:01:05]} 21. Qxd3 {[%clk 0:01:03.5]} 21... Rxd3 {[%clk 0:01:05.9]} 22. Rfe1
{[%clk 0:01:03.4]} 22... Red8 {[%clk 0:01:02.2]} 23. Nh4 {[%clk 0:00:34.2]}
23... g6 {[%clk 0:00:41.4]} 24. Bf1 {[%clk 0:00:31.1]} 24... Rxc3 {[%clk
0:00:36.2]} 25. Rxc3 {[%clk 0:00:26.7]} 25... Rd2 {[%clk 0:00:34.1]} 26. Re2
{[%clk 0:00:14.3]} 26... Rd1 {[%clk 0:00:34.3]} 27. Kg2 {[%clk 0:00:14.5]} 27...
Bg7 {[%clk 0:00:32.8]} 28. Rc5 {[%clk 0:00:10]} 28... Bd4 {[%clk 0:00:28.8]} 29.
Rxc6 {[%clk 0:00:06.1]} 29... bxc6 {[%clk 0:00:28.6]} 30. Nf3 {[%clk 0:00:07]}
30... c5 {[%clk 0:00:27.5]} 31. Rd2 {[%clk 0:00:06.9]} 31... Rxd2 {[%clk
0:00:20.8]} 32. Nxd2 {[%clk 0:00:07.6]} 32... Bc2 {[%clk 0:00:21.3]} 33. Bb5
{[%clk 0:00:07.8]} 33... Bxb2 {[%clk 0:00:20.2]} 34. Nc4 {[%clk 0:00:08]} 34...
Bc1 {[%clk 0:00:17]} 35. f3 {[%clk 0:00:07.9]} 35... Bd3 {[%clk 0:00:12.2]} 36.
Kf2 {[%clk 0:00:07.4]} 36... c6 {[%clk 0:00:12.3]} 37. Ba6 {[%clk 0:00:05.7]}
37... Bxa3 {[%clk 0:00:11]} 38. Nxa3 {[%clk 0:00:06.6]} 38... Bxa6 {[%clk
0:00:10.9]} 39. Ke3 {[%clk 0:00:07.5]} 39... Kf8 {[%clk 0:00:11.2]} 40. f4
{[%clk 0:00:07.3]} 40... Ke7 {[%clk 0:00:11.6]} 41. Kd2 {[%clk 0:00:07.9]} 41...
Kd6 {[%clk 0:00:11]} 42. Kc3 {[%clk 0:00:08.2]} 42... Bf1 {[%clk 0:00:10.6]} 43.
Nb1 {[%clk 0:00:07.9]} 43... Bg2 {[%clk 0:00:10.3]} 44. Nd2 {[%clk 0:00:08.1]}
44... Kc7 {[%clk 0:00:09.3]} 45. h4 {[%clk 0:00:07.7]} 45... h5 {[%clk
0:00:06.8]} 46. f5 {[%clk 0:00:06.1]} 46... gxf5 {[%clk 0:00:05.7]} 47. exf5
{[%clk 0:00:07]} 47... Kd6 {[%clk 0:00:05.6]} 48. Nc4+ {[%clk 0:00:07.2]} 48...
Ke7 {[%clk 0:00:05.4]} 49. Ne5 {[%clk 0:00:07.3]} 49... Kf6 {[%clk 0:00:04.5]}
50. Nd3 {[%clk 0:00:07.4]} 1-0

[Event "Early-Titled-Tuesday-Blitz-October-03-2023"]
[Site "Chess.com"]
[Date "2023.10.03"]
[Round "8"]
[White "Orest_Vovk"]
[Black "Kopytkin"]
[Result "0-1"]
[WhiteElo "2501"]
[BlackElo "2402"]
[TimeControl "180+1"]
[EndTime "9:30:34 PDT"]
[Termination "Kopytkin won by resignation"]

1. h4 {[%clk 0:02:54.7]} 1... d5 {[%clk 0:02:56.7]} 2. h5 {[%clk 0:02:54]} 2...
e5 {[%clk 0:02:56.6]} 3. h6 {[%clk 0:02:54.3]} 3... g6 {[%clk 0:02:56.5]} 4. d4
{[%clk 0:02:54.8]} 4... e4 {[%clk 0:02:49.2]} 5. Bf4 {[%clk 0:02:53.5]} 5... Bd6
{[%clk 0:02:47.8]} 6. Bxd6 {[%clk 0:02:52.7]} 6... Qxd6 {[%clk 0:02:47.7]} 7. a3
{[%clk 0:02:52.5]} 7... Nf6 {[%clk 0:02:41.5]} 8. e3 {[%clk 0:02:52.7]} 8... O-O
{[%clk 0:02:41.3]} 9. c4 {[%clk 0:02:52.5]} 9... c5 {[%clk 0:02:36.6]} 10. Nc3
{[%clk 0:02:36.7]} 10... cxd4 {[%clk 0:02:35.1]} 11. Qxd4 {[%clk 0:02:32.5]}
11... Nc6 {[%clk 0:02:34.8]} 12. Qd2 {[%clk 0:02:32.4]} 12... d4 {[%clk
0:02:25]} 13. exd4 {[%clk 0:02:27.8]} 13... Qxd4 {[%clk 0:02:25.1]} 14. Qxd4
{[%clk 0:02:25.6]} 14... Nxd4 {[%clk 0:02:26]} 15. O-O-O {[%clk 0:02:24.6]}
15... Nb3+ {[%clk 0:02:20.3]} 16. Kc2 {[%clk 0:02:23.4]} 16... Nc5 {[%clk
0:02:20.2]} 17. Nge2 {[%clk 0:02:17.5]} 17... Nd3 {[%clk 0:02:14]} 18. Nxe4
{[%clk 0:02:05.2]} 18... Nxe4 {[%clk 0:02:12.3]} 19. Rxd3 {[%clk 0:02:01.6]}
19... Nxf2 {[%clk 0:02:12.5]} 20. Rh4 {[%clk 0:01:54.1]} 20... Bf5 {[%clk
0:02:08.3]} 21. Nc1 {[%clk 0:01:53.7]} 21... Rad8 {[%clk 0:01:57.2]} 22. Kc3
{[%clk 0:01:53.1]} 22... Nxd3 {[%clk 0:01:38.4]} 23. Bxd3 {[%clk 0:01:49.9]}
23... Bxd3 {[%clk 0:01:31.1]} 24. Nxd3 {[%clk 0:01:50.8]} 24... Rfe8 {[%clk
0:01:31.6]} 25. Rh3 {[%clk 0:01:37.7]} 25... Re2 {[%clk 0:01:20]} 26. Rg3 {[%clk
0:01:37.3]} 26... Rde8 {[%clk 0:01:11.8]} 27. Rg5 {[%clk 0:01:15.4]} 27... f5
{[%clk 0:01:07.4]} 28. b4 {[%clk 0:01:03.2]} 28... R2e3 {[%clk 0:00:59.1]} 29.
Kd2 {[%clk 0:00:58.6]} 29... Re2+ {[%clk 0:00:52.5]} 30. Kc3 {[%clk 0:00:58]}
30... Kf7 {[%clk 0:00:48.3]} 31. Nf4 {[%clk 0:00:46.3]} 31... R2e3+ {[%clk
0:00:47.3]} 32. Kd2 {[%clk 0:00:45.9]} 32... R3e4 {[%clk 0:00:44.7]} 33. Nd3
{[%clk 0:00:33.2]} 33... Rxc4 {[%clk 0:00:42.9]} 34. Rg3 {[%clk 0:00:33.3]}
34... Rd8 {[%clk 0:00:40.9]} 35. Ke2 {[%clk 0:00:29.9]} 35... Re4+ {[%clk
0:00:40.6]} 36. Kf1 {[%clk 0:00:29.2]} 36... b6 {[%clk 0:00:33.5]} 37. Rf3
{[%clk 0:00:25.4]} 37... Kf6 {[%clk 0:00:31.2]} 38. g3 {[%clk 0:00:20.5]} 38...
g5 {[%clk 0:00:31.3]} 39. Nf2 {[%clk 0:00:20]} 39... Red4 {[%clk 0:00:27]} 40.
Rc3 {[%clk 0:00:19.8]} 40... Kg6 {[%clk 0:00:22.6]} 41. Rc6+ {[%clk 0:00:19]}
41... R4d6 {[%clk 0:00:22.2]} 42. Rc7 {[%clk 0:00:19.3]} 42... R8d7 {[%clk
0:00:22.7]} 43. Rc8 {[%clk 0:00:18.6]} 43... Kxh6 {[%clk 0:00:22.5]} 44. Rg8
{[%clk 0:00:18]} 44... Rd2 {[%clk 0:00:19.4]} 45. g4 {[%clk 0:00:17.4]} 45...
Rxf2+ {[%clk 0:00:14.5]} 46. Kxf2 {[%clk 0:00:17.1]} 46... fxg4 {[%clk 0:00:15]}
47. Kg3 {[%clk 0:00:13.1]} 47... Kh5 {[%clk 0:00:15.2]} 48. Ra8 {[%clk
0:00:13.2]} 48... h6 {[%clk 0:00:14.4]} 49. a4 {[%clk 0:00:11.9]} 49... Rd3+
{[%clk 0:00:13.9]} 50. Kf2 {[%clk 0:00:12.1]} 50... Rd4 {[%clk 0:00:14]} 51. a5
{[%clk 0:00:09.1]} 51... Rxb4 {[%clk 0:00:12.8]} 52. a6 {[%clk 0:00:08.9]} 52...
Kh4 {[%clk 0:00:12.2]} 53. Rxa7 {[%clk 0:00:09]} 53... Ra4 {[%clk 0:00:12.3]}
54. Ra8 {[%clk 0:00:08.9]} 54... h5 {[%clk 0:00:11.8]} 55. a7 {[%clk 0:00:08.5]}
55... Ra2+ {[%clk 0:00:11.9]} 56. Ke3 {[%clk 0:00:08.4]} 56... g3 {[%clk
0:00:12.5]} 57. Rd8 {[%clk 0:00:03.6]} 57... Rxa7 {[%clk 0:00:11.4]} 58. Rd1
{[%clk 0:00:03.5]} 58... g4 {[%clk 0:00:11.3]} 59. Kf4 {[%clk 0:00:03.1]} 59...
Rf7+ {[%clk 0:00:10.7]} 60. Ke5 {[%clk 0:00:02.7]} 60... g2 {[%clk 0:00:11.1]}
61. Rg1 {[%clk 0:00:01.6]} 61... Kg3 {[%clk 0:00:11.2]} 62. Ke6 {[%clk
0:00:01.9]} 62... Rf1 {[%clk 0:00:11.1]} 0-1

[Event "Early-Titled-Tuesday-Blitz-October-03-2023"]
[Site "Chess.com"]
[Date "2023.10.03"]
[Round "8"]
[White "Anton_Demchenko"]
[Black "vugarrasulov"]
[Result "1/2-1/2"]
[WhiteElo "2921"]
[BlackElo "2954"]
[TimeControl "180+1"]
[EndTime "9:30:37 PDT"]
[Termination "Game drawn - insufficient material"]

1. e4 {[%clk 0:03:00.9]} 1... c5 {[%clk 0:02:59.7]} 2. Nf3 {[%clk 0:03:01.3]}
2... Nc6 {[%clk 0:03:00.2]} 3. Bb5 {[%clk 0:03:01]} 3... e6 {[%clk 0:03:00]} 4.
Bxc6 {[%clk 0:02:58.9]} 4... bxc6 {[%clk 0:03:00.1]} 5. d3 {[%clk 0:02:59.8]}
5... Ne7 {[%clk 0:02:59.9]} 6. Nbd2 {[%clk 0:02:56.3]} 6... d6 {[%clk
0:02:59.2]} 7. e5 {[%clk 0:02:55]} 7... Ng6 {[%clk 0:02:57.8]} 8. exd6 {[%clk
0:02:54.5]} 8... Bxd6 {[%clk 0:02:58.6]} 9. Nc4 {[%clk 0:02:47.7]} 9... O-O
{[%clk 0:02:57.5]} 10. h4 {[%clk 0:02:45.9]} 10... e5 {[%clk 0:02:52.3]} 11. h5
{[%clk 0:02:45]} 11... Nf4 {[%clk 0:02:52.7]} 12. Bxf4 {[%clk 0:02:09.6]} 12...
exf4 {[%clk 0:02:53.6]} 13. h6 {[%clk 0:02:09.9]} 13... Re8+ {[%clk 0:02:51.3]}
14. Kf1 {[%clk 0:02:03.7]} 14... g6 {[%clk 0:02:51.3]} 15. Qd2 {[%clk
0:01:59.1]} 15... Be6 {[%clk 0:02:45.2]} 16. Re1 {[%clk 0:01:52.8]} 16... f6
{[%clk 0:02:29.2]} 17. Qc3 {[%clk 0:01:45.8]} 17... Bf8 {[%clk 0:02:25.8]} 18.
Nfd2 {[%clk 0:01:32.8]} 18... Qd4 {[%clk 0:01:57.6]} 19. Ne4 {[%clk 0:01:09.7]}
19... Qxc3 {[%clk 0:01:57.3]} 20. bxc3 {[%clk 0:01:10.6]} 20... Be7 {[%clk
0:01:49.3]} 21. Ned6 {[%clk 0:01:10.4]} 21... Bxd6 {[%clk 0:01:49.1]} 22. Nxd6
{[%clk 0:01:11.3]} 22... Re7 {[%clk 0:01:49.8]} 23. Ne4 {[%clk 0:01:11.1]} 23...
Kf7 {[%clk 0:01:43.8]} 24. c4 {[%clk 0:01:07.2]} 24... Rb8 {[%clk 0:01:36]} 25.
Ke2 {[%clk 0:00:36]} 25... Bxc4 {[%clk 0:01:28.2]} 26. Kd2 {[%clk 0:00:34.9]}
26... Bd5 {[%clk 0:01:28.4]} 27. f3 {[%clk 0:00:32.6]} 27... Bxe4 {[%clk
0:01:27.5]} 28. fxe4 {[%clk 0:00:20.5]} 28... g5 {[%clk 0:01:27.6]} 29. Kc3
{[%clk 0:00:16.8]} 29... Kg6 {[%clk 0:01:24.5]} 30. g3 {[%clk 0:00:17.4]} 30...
fxg3 {[%clk 0:01:24]} 31. Reg1 {[%clk 0:00:18.1]} 31... Rb4 {[%clk 0:01:12.5]}
32. Rxg3 {[%clk 0:00:17.7]} 32... Ra4 {[%clk 0:01:13]} 33. Kb3 {[%clk 0:00:15]}
33... Ra6 {[%clk 0:01:13]} 34. Rf3 {[%clk 0:00:14.5]} 34... Rb7+ {[%clk
0:01:11.6]} 35. Kc4 {[%clk 0:00:15.1]} 35... Rxa2 {[%clk 0:01:07.8]} 36. Rh2
{[%clk 0:00:14.9]} 36... a5 {[%clk 0:00:38.6]} 37. Kxc5 {[%clk 0:00:13.9]} 37...
a4 {[%clk 0:00:38.1]} 38. Kxc6 {[%clk 0:00:14.2]} 38... Rbb2 {[%clk 0:00:31.1]}
39. Rff2 {[%clk 0:00:10.9]} 39... a3 {[%clk 0:00:31.6]} 40. d4 {[%clk
0:00:08.2]} 40... Ra1 {[%clk 0:00:29]} 41. c4 {[%clk 0:00:05.9]} 41... Rxf2
{[%clk 0:00:19]} 42. Rxf2 {[%clk 0:00:06.8]} 42... a2 {[%clk 0:00:19.7]} 43. d5
{[%clk 0:00:06.8]} 43... Rc1 {[%clk 0:00:17.3]} 44. Rxa2 {[%clk 0:00:06.5]}
44... Rxc4+ {[%clk 0:00:18]} 45. Kd7 {[%clk 0:00:06.4]} 45... Rxe4 {[%clk
0:00:18.7]} 46. d6 {[%clk 0:00:05.9]} 46... g4 {[%clk 0:00:19.2]} 47. Kc6 {[%clk
0:00:05.3]} 47... Rd4 {[%clk 0:00:18]} 48. d7 {[%clk 0:00:04.8]} 48... Kxh6
{[%clk 0:00:18.4]} 49. Ra4 {[%clk 0:00:02.3]} 49... Rxd7 {[%clk 0:00:14.3]} 50.
Kxd7 {[%clk 0:00:01.6]} 50... Kg5 {[%clk 0:00:15.2]} 51. Ke6 {[%clk 0:00:02.1]}
51... h5 {[%clk 0:00:13.4]} 52. Kd5 {[%clk 0:00:02.7]} 52... f5 {[%clk
0:00:12.9]} 53. Kd4 {[%clk 0:00:02.8]} 53... Kf4 {[%clk 0:00:13.4]} 54. Kd3+
{[%clk 0:00:03]} 54... Kf3 {[%clk 0:00:13.4]} 55. Ra5 {[%clk 0:00:02.6]} 55...
f4 {[%clk 0:00:12.8]} 56. Rxh5 {[%clk 0:00:02.8]} 56... g3 {[%clk 0:00:13.5]}
57. Rg5 {[%clk 0:00:02.8]} 57... Kg2 {[%clk 0:00:10.7]} 58. Ke4 {[%clk
0:00:02.6]} 58... f3 {[%clk 0:00:11.3]} 59. Kf4 {[%clk 0:00:03.1]} 59... f2
{[%clk 0:00:12]} 60. Rxg3+ {[%clk 0:00:03.7]} 60... Kh2 {[%clk 0:00:12.7]} 61.
Rf3 {[%clk 0:00:04.4]} 61... Kg2 {[%clk 0:00:13.4]} 62. Ke3 {[%clk 0:00:04.3]}
62... f1=Q {[%clk 0:00:13]} 63. Rxf1 {[%clk 0:00:05]} 63... Kxf1 {[%clk
0:00:13.9]} 1/2-1/2

[Event "Early-Titled-Tuesday-Blitz-October-03-2023"]
[Site "Chess.com"]
[Date "2023.10.03"]
[Round "8"]
[White "Vesper2018"]
[Black "LangesNasenhaar"]
[Result "1/2-1/2"]
[WhiteElo "2577"]
[BlackElo "2449"]
[TimeControl "180+1"]
[EndTime "9:30:38 PDT"]
[Termination "Game drawn by repetition"]

1. e4 {[%clk 0:03:00.9]} 1... g6 {[%clk 0:02:59.7]} 2. d4 {[%clk 0:03:00.4]}
2... Bg7 {[%clk 0:03:00.2]} 3. Nc3 {[%clk 0:03:00.8]} 3... c6 {[%clk 0:03:00.9]}
4. f4 {[%clk 0:03:00.9]} 4... d5 {[%clk 0:03:00.8]} 5. e5 {[%clk 0:03:00.5]}
5... h5 {[%clk 0:03:01]} 6. Nf3 {[%clk 0:02:59.2]} 6... Bg4 {[%clk 0:02:59.2]}
7. Be3 {[%clk 0:02:53.2]} 7... Nh6 {[%clk 0:02:58.3]} 8. Bf2 {[%clk 0:02:52.2]}
8... Nf5 {[%clk 0:02:56]} 9. Bd3 {[%clk 0:02:36.9]} 9... e6 {[%clk 0:02:53.4]}
10. h3 {[%clk 0:02:30.9]} 10... Bxf3 {[%clk 0:02:53.1]} 11. Qxf3 {[%clk
0:02:31.1]} 11... h4 {[%clk 0:02:53.8]} 12. Ne2 {[%clk 0:02:16.1]} 12... Bf8
{[%clk 0:02:53]} 13. a4 {[%clk 0:02:09.4]} 13... Be7 {[%clk 0:02:52.8]} 14. a5
{[%clk 0:02:06.9]} 14... Nd7 {[%clk 0:02:51.1]} 15. c4 {[%clk 0:02:03.6]} 15...
Kf8 {[%clk 0:02:35.1]} 16. O-O {[%clk 0:01:57.5]} 16... Kg7 {[%clk 0:02:31.2]}
17. Nc3 {[%clk 0:01:45.7]} 17... a6 {[%clk 0:02:25.6]} 18. c5 {[%clk 0:01:24.1]}
18... Qg8 {[%clk 0:02:07.6]} 19. Ne2 {[%clk 0:01:20]} 19... Qh7 {[%clk
0:02:03.6]} 20. Be1 {[%clk 0:01:12.8]} 20... Qh5 {[%clk 0:02:02.4]} 21. Qxh5
{[%clk 0:00:59.5]} 21... Rxh5 {[%clk 0:02:01.3]} 22. Kf2 {[%clk 0:00:56.6]}
22... Kf8 {[%clk 0:01:14.8]} 23. Ra3 {[%clk 0:00:54.2]} 23... Ke8 {[%clk
0:01:12.4]} 24. Rb3 {[%clk 0:00:53.4]} 24... Ra7 {[%clk 0:01:13]} 25. Kf3 {[%clk
0:00:36.7]} 25... Kd8 {[%clk 0:01:11.7]} 26. Bf2 {[%clk 0:00:32]} 26... Kc7
{[%clk 0:01:10.2]} 27. Rh1 {[%clk 0:00:31.1]} 27... Ra8 {[%clk 0:01:09.4]} 28.
g4 {[%clk 0:00:21.7]} 28... hxg3 {[%clk 0:01:07.9]} 29. Nxg3 {[%clk 0:00:21.9]}
29... Nh4+ {[%clk 0:00:58]} 30. Ke3 {[%clk 0:00:22]} 30... Rh7 {[%clk 0:00:57]}
31. Be2 {[%clk 0:00:20.7]} 31... Rah8 {[%clk 0:00:50.3]} 32. Bg4 {[%clk
0:00:20.4]} 32... Nf5+ {[%clk 0:00:47.7]} 33. Kf3 {[%clk 0:00:18.2]} 33... Bd8
{[%clk 0:00:41.7]} 34. Rd3 {[%clk 0:00:16.5]} 34... Kc8 {[%clk 0:00:40.4]} 35.
b4 {[%clk 0:00:14.7]} 35... Kc7 {[%clk 0:00:38.4]} 36. Rb3 {[%clk 0:00:14.6]}
36... f6 {[%clk 0:00:33.9]} 37. Rd3 {[%clk 0:00:11.7]} 37... Nh4+ {[%clk
0:00:28.3]} 38. Ke2 {[%clk 0:00:11.5]} 38... f5 {[%clk 0:00:28.8]} 39. Bf3
{[%clk 0:00:10.3]} 39... Nxf3 {[%clk 0:00:26.7]} 40. Kxf3 {[%clk 0:00:08.1]}
40... Rxh3 {[%clk 0:00:26.8]} 41. Rxh3 {[%clk 0:00:08.8]} 41... Rxh3 {[%clk
0:00:27]} 42. Kg2 {[%clk 0:00:09.4]} 42... Rh7 {[%clk 0:00:25.2]} 43. Rd1 {[%clk
0:00:09.5]} 43... g5 {[%clk 0:00:25.4]} 44. Be3 {[%clk 0:00:06.8]} 44... gxf4
{[%clk 0:00:22.1]} 45. Bxf4 {[%clk 0:00:07.1]} 45... Nf8 {[%clk 0:00:21.9]} 46.
Kf3 {[%clk 0:00:02.7]} 46... Ng6 {[%clk 0:00:21]} 47. Rg1 {[%clk 0:00:02.5]}
47... Rh3 {[%clk 0:00:17.5]} 48. Rg2 {[%clk 0:00:01.4]} 48... Bh4 {[%clk
0:00:14.2]} 49. Rg1 {[%clk 0:00:01.3]} 49... Nxf4 {[%clk 0:00:11.1]} 50. Kxf4
{[%clk 0:00:01.6]} 50... Bxg3+ {[%clk 0:00:11.1]} 51. Rxg3 {[%clk 0:00:02]}
51... Rxg3 {[%clk 0:00:11.1]} 52. Kxg3 {[%clk 0:00:02.4]} 52... Kd7 {[%clk
0:00:11.7]} 53. Kh4 {[%clk 0:00:02.9]} 53... Ke7 {[%clk 0:00:12.2]} 54. Kh5
{[%clk 0:00:01.4]} 54... Kf7 {[%clk 0:00:12.4]} 55. Kg5 {[%clk 0:00:02]} 55...
Kg7 {[%clk 0:00:12.6]} 56. Kh5 {[%clk 0:00:02.7]} 56... f4 {[%clk 0:00:06.9]}
57. Kg4 {[%clk 0:00:03.2]} 57... Kg6 {[%clk 0:00:05.7]} 58. Kxf4 {[%clk
0:00:03.7]} 58... Kh5 {[%clk 0:00:06.3]} 59. Kf3 {[%clk 0:00:04.2]} 59... Kg5
{[%clk 0:00:06.3]} 60. Kg3 {[%clk 0:00:04.8]} 60... Kf5 {[%clk 0:00:06.3]} 61.
Kf3 {[%clk 0:00:05.3]} 61... Kg5 {[%clk 0:00:06.4]} 62. Kg3 {[%clk 0:00:05.9]}
62... Kf5 {[%clk 0:00:06.1]} 63. Kf3 {[%clk 0:00:06.5]} 63... Kg5 {[%clk
0:00:06.7]} 1/2-1/2